Cogmind - Beta 16 --- EXPLORER MODE // 2025.11.12 @ 14:19:57 Player: K.K.Y. Result: Destroyed by 0Q-WDM(j) with Overtuned Pulse Rifle Performance ------------- Evolutions (0) 0 Regions Visited (4) 800 Robots Destroyed (40) 200 Value Destroyed (1205) 1205 Prototype IDs (25) 500 Alien Tech Used (0) 0 Bonus (735) 735 TOTAL SCORE: 3440 Bonus ------- Registered with UFD 300 Met Optimus in HQ 500 Friendly Fire -65 Cogmind --------- Core Integrity 0/250 Matter 296/300 Energy 265/265 System Corruption 4% Temperature Cool (26) Movement Treading (200) Ox1 Location -9/Scraptown Parts ------- > --- POWER (1) -------- Improved Ion Engine > --- PROPULSION (3) --- Overtuned Treads Overtuned Treads Improved Medium Treads (fused) > --- UTILITY (2) ------ High-capacity Storage Unit A0-MCA's Component Scanner > --- WEAPON (2) ------- Barrage Gun > --- INVENTORY (20) --- Improved Cryofiber Web Structural Scanner Sensor Array Signal Interpreter Advanced Signal Interpreter Terrain Scanner Surveybot 17 Chip Salvage Targeting Computer Mapping Drone Bay (3/3) Power Bank Light Assault Rifle Heavy Assault Rifle Heavy Assault Rifle Battle Rifle Mining Laser Ripper Peak State ------------ > --- POWER ------------ Improved Ion Engine > --- PROPULSION ------- Overtuned Treads Overtuned Treads Improved Medium Treads > --- UTILITY ---------- High-capacity Storage Unit A0-MCA's Component Scanner > --- WEAPON ----------- Barrage Gun Improved Datajack > --- INVENTORY -------- Improved Cryofiber Web Structural Scanner Sensor Array Signal Interpreter Advanced Signal Interpreter Terrain Scanner Surveybot 17 Chip Salvage Targeting Computer Mapping Drone Bay Power Bank Light Assault Rifle Heavy Assault Rifle Heavy Assault Rifle Battle Rifle Mining Laser Ripper [Rating: 34] Favorites ----------- Power Improved Ion Engine Engine Improved Ion Engine Propulsion Light Treads Treads Light Treads Utility Sensor Array Device Sensor Array Storage High-capacity Storage Unit Processor A0-MCA's Component Scanner Weapon Improved Datajack Ballistic Gun Light Assault Rifle Ballistic Cannon Battle Cannon Launcher Rocket Launcher Special Melee Weapon Improved Datajack Build | -11 -10 -10 -9 -9 ------- Run | Yrd Mat Sub Rec Scr Slots Evolved 1 | . 1 . . . Power . | . . . . . Propulsion 1 | . 1 . . . Utility . | . . . . . Weapon . | . . . . . Parts Attached 26 | 6 4 3 6 7 Power 2 | 1 . . 1 . Engine 2 | 1 . . 1 . Core . | . . . . . Reactor . | . . . . . Propulsion 12 | 2 3 . 4 3 Treads 12 | 2 3 . 4 3 Leg . | . . . . . Wheel . | . . . . . Hover . | . . . . . Flight . | . . . . . Utility 6 | 2 1 . 1 2 Device 2 | 1 . . . 1 Storage 3 | 1 1 . 1 . Processor 1 | . . . . 1 Hackware . | . . . . . Protection . | . . . . . Artifact . | . . . . . Weapon 6 | 1 . 3 . 2 Energy Gun . | . . . . . Energy Cannon . | . . . . . Ballistic Gun 3 | 1 . 1 . 1 Ballistic Cannon 1 | . . 1 . . Launcher 1 | . . 1 . . Special Weapon . | . . . . . Impact Weapon . | . . . . . Slashing Weapon . | . . . . . Piercing Weapon . | . . . . . Special Melee Weapon 1 | . . . . 1 Unidentified Prototypes . | . . . . . Parts Lost 8 | . . 4 1 3 Power 1 | . . 1 . . Propulsion 4 | . . 2 1 1 Utility . | . . . . . Weapon 3 | . . 1 . 2 Highest Loss Streak 3 | . . 3 1 3 To Critical Strikes . | . . . . . Average Backups 12 | 1 3 7 13 18 Power . | . . . . . Propulsion . | . . . . . Utility 6 | . 2 4 5 9 Weapon 6 | . 1 3 7 8 Tool/Special . | . . . . . Unused Backups 16 | . . . 1 15 Power . | . . . . . Propulsion 1 | . . . 1 . Utility 9 | . . . . 9 Weapon 5 | . . . . 5 Tool/Special 1 | . . . . 1 Average Slot Usage (%) 85 | . 86 96 72 84 Engine 10 | . 12 11 5 12 Treads 35 | . 36 36 29 36 Device 9 | . 12 12 12 5 Storage 12 | . 12 12 12 12 Processor 2 | . . . . 6 Ballistic Gun 6 | . 12 12 12 . Ballistic Cannon 2 | . . 8 . . Special Melee Weapon 4 | . . . . 9 Peak Build Rating 34 | 6 7 12 14 34 Average Rating 16 | 4 6 10 11 24 On Entrance 7 | . 6 7 9 14 Avg Prop Armor Cover (%) 9 | . . . . 9 Naked Turns . | . . . . . Heaviest Build 52 | 17 27 31 50 52 Greatest Support 76 | 40 60 60 66 76 Greatest Overweight (x) 2 | . . 1 2 1 Average Overweight (x) . | . . . . . Largest Inventory Capacity 20 | 10 15 15 20 20 Average Capacity 17 | 9 11 15 19 20 Most Carried 20 | 4 6 12 17 20 Average Carried 13 | 1 3 8 14 18 Final Capacity 20 | 10 15 15 20 20 Final Carried 17 | 1 5 11 17 16 Class Distribution -------------------- 100% | Hacker-Mutant Dominant Class ---------------- Hacker-Mutant | -10/Materials Hacker-Mutant | -10/Subcaves Hacker-Mutant | -9/Recycling Hacker-Mutant | -9/Scraptown Resources | -11 -10 -10 -9 -9 ----------- Run | Yrd Mat Sub Rec Scr Matter Collected 1289 | 148 189 265 297 390 Remotely . | . . . . . Salvage Created 1509 | . 176 330 425 578 Parts 94 | . 17 21 22 34 Haulers Intercepted 2 | . 2 . . . Recyclers Shooed 2 | . . . 2 . Parts Field Recycled . | . . . . . Retrieved Matter . | . . . . . Parts Self-Destructed . | . . . . . Prevented . | . . . . . Parts Restored . | . . . . . Kills | -11 -10 -10 -9 -9 ------- Run | Yrd Mat Sub Rec Scr Combat Hostiles Destroyed 33 | . 6 10 3 14 Guns 12 | . 6 3 3 . Cannons 6 | . . 6 . . AOE 15 | . . 1 . 14 Classes Destroyed 12 | . 2 3 3 4 Builder 1 | . . . 1 . Hauler 2 | . 2 . . . Recycler 2 | . . . 2 . Turret 2 | . . 2 . . Swarmer 9 | . 6 3 . . Sentry 3 | . . . 3 . Cobbler 1 | . . 1 . . Subdweller 7 | . . 7 . . Federalist 3 | . . . . 3 Explorer 2 | . . . . 2 Ranger 2 | . . . . 2 Scrapper 7 | . . . . 7 Best Kill Streak 11 | . 3 3 3 11 Combat Bots Only 11 | . 2 3 1 11 Max Kills in Single Turn 3 | . 1 1 1 3 Gunslinging . | . . . . . Exploded 3 | . . 1 . 3 Melee . | . . . . . Uniques/NPCs Destroyed . | . . . . . Combat | -11 -10 -10 -9 -9 -------- Run | Yrd Mat Sub Rec Scr Hostile Shots Fired 299 | . 42 132 22 103 Missed 88 | . 9 49 5 25 Hits 211 | . 33 83 17 78 Projectile 211 | . 33 83 17 78 AOE 3 | . . 3 . . Critical Strikes 5 | . . . 1 4 Part Disruptions 1 | . 1 . . . Damage Taken 1681 | . 265 559 153 704 Core 255 | . 4 109 34 108 Absorbed by Shields . | . . . . . Ignored by Resistances 1080 | . 177 365 97 441 Core Remaining (%) 100 | 100 . . . . Volleys Fired 149 | . 46 52 26 25 Largest 2 | . 1 2 1 1 Hottest 53 | . 20 53 25 33 Shots Fired 188 | . 46 91 26 25 Gun 126 | . 46 49 26 5 Cannon 32 | . . 32 . . Launcher 30 | . . 10 . 20 Special . | . . . . . Kinetic 158 | . 46 81 26 5 Thermal . | . . . . . Explosive 30 | . . 10 . 20 Electromagnetic . | . . . . . Robot Hit Streak 38 | . 21 35 35 38 Robot Miss Streak 3 | . 3 1 . 2 Penetration Max . | . . . . . Secondary Targets . | . . . . . Shots Hit Robots 143 | . 34 61 22 26 Core Hits 92 | . 15 32 11 34 Critical Kills 1 | . . . 1 . Critical Parts Destroyed . | . . . . . Critical Strikes 1 | . . . 1 . Destroy 1 | . . . 1 . Melee Attacks 5 | . . . . 5 Impact . | . . . . . Slashing . | . . . . . Piercing . | . . . . . Sneak Attacks 4 | . . . . 4 Combat Hostiles . | . . . . . Follow-up Attacks . | . . . . . Damage Inflicted 3258 | . 281 1116 362 1499 Guns 988 | . 281 297 341 69 Cannons 416 | . . 416 . . Explosions 1833 | . . 403 . 1430 Melee . | . . . . . Ramming 21 | . . . 21 . Kinetic 1404 | . 281 713 341 69 Thermal . | . . . . . Explosive 1833 | . . 403 . 1430 Electromagnetic . | . . . . . Impact . | . . . . . Slashing . | . . . . . Piercing . | . . . . . Highest Corruption 4 | . 2 2 3 4 Average Corruption 2 | . 1 2 2 3 Corruption Purged . | . . . . . Corruption Blocked . | . . . . . Effects 87 | . 3 15 17 52 Message Errors 22 | . 1 4 5 12 Matter Fused 22 | . 1 5 4 12 Heat Flow Errors 10 | . 1 2 1 6 Energy Discharges 9 | . . 1 2 6 Parts Rejected 1 | . . . . 1 Parts Fused 1 | . . . . 1 Data Loss (minor) 11 | . . 1 2 8 Data Loss (major) 5 | . . . 1 4 Misfires 2 | . . 2 . . Alerts 4 | . . . 2 2 Overload Shots . | . . . . . Overflow Damage 9 | . . 1 . 8 Projectiles . | . . . . . Explosions 9 | . . 1 . 8 Melee . | . . . . . Knockbacks 7 | . . 6 1 . Impact 1 | . . . 1 . Kinetic 6 | . . 6 . . Secondary . | . . . . . Self-Inflicted Damage 24 | . . 24 . . Shots 1 | . . 1 . . Rammed 3 | . 1 . 2 . Targets Rammed 3 | . 1 . 2 . Kicked . | . . . . . Crushed . | . . . . . Highest Temperature 280 | . 130 276 180 280 Average Temperature 73 | . 67 140 51 67 Received Heat Transfer 1033 | . . 300 90 643 Siege Activations . | . . . . . Martial Activations . | . . . . . Shielding Activations . | . . . . . Robots Disrupted . | . . . . . Combat Hostiles . | . . . . . Robots Corrupted . | . . . . . Combat Hostiles . | . . . . . Parts Fried . | . . . . . Impact Corruptions . | . . . . . Robots Melted . | . . . . . Combat Hostiles . | . . . . . Parts Melted 3 | . . . . 3 Heat Transferred . | . . . . . Parts Sabotaged . | . . . . . Parts Stolen . | . . . . . Parts Stripped . | . . . . . Power Chain Reactions . | . . . . . Alert | -11 -10 -10 -9 -9 ------- Run | Yrd Mat Sub Rec Scr Maximum Alert Level . | . . . . . Low Security (%) 100 | 100 100 . 100 . Level 1 . | . . . . . Level 2 . | . . . . . Level 3 . | . . . . . Level 4 . | . . . . . Level 5 . | . . . . . High Security . | . . . . . Max Security . | . . . . . Peak Influence 50 | . 50 . 40 . Initial 35 | . . . 35 . Average 4 | . 6 . 3 . Influence Increases 454 | . 168 190 96 . Destroy 0b10 Robot/C 280 | . 120 100 60 . Destroy 0b10 Robot/NC 30 | . 10 . 20 . Destroy Leader 34 | . 34 . . . Successful Hack 16 | . 4 . 12 . Disable Machine 4 | . . . 4 . Lose Combat Pursuer 90 | . . 90 . . Influence Decreases 454 | . 168 90 196 . Entered New Map 65 | . . . 65 . Time Decay 359 | . 168 60 131 . Lost Part 30 | . . 30 . . Squads Dispatched . | . . . . . Investigation . | . . . . . Extermination . | . . . . . Reinforcement . | . . . . . Assault . | . . . . . Garrison . | . . . . . Intercept . | . . . . . Searches Triggered . | . . . . . Construction Impeded . | . . . . . Haulers Reinforced . | . . . . . Active Scanning Responses . | . . . . . Cargo Convoy Interrupts . | . . . . . Stealth | -11 -10 -10 -9 -9 --------- Run | Yrd Mat Sub Rec Scr Distress Signals . | . . . . . Communications Jammed . | . . . . . Distress Signals . | . . . . . Times Spotted 70 | . 14 18 3 35 Peak Tracking Total 9 | . 3 6 1 9 Tactical Retreats 2 | . . 2 . . Traps | -11 -10 -10 -9 -9 ------- Run | Yrd Mat Sub Rec Scr Traps Triggered 3 | . 3 . . . Indirectly . | . . . . . Trap Hack Attempts . | . . . . . Triggered . | . . . . . Disarmed . | . . . . . Reprogrammed . | . . . . . Reused . | . . . . . Traps Extracted . | . . . . . Installed . | . . . . . Triggered . | . . . . . Machines | -11 -10 -10 -9 -9 ---------- Run | Yrd Mat Sub Rec Scr Machines Disabled 8 | . . 5 1 2 Max in Single Turn 3 | . . 3 1 2 Machines Repaired . | . . . . . Machines Dismantled . | . . . . . Machines Sabotaged . | . . . . . Overloaded Fab Kills . | . . . . . Hacking | -11 -10 -10 -9 -9 --------- Run | Yrd Mat Sub Rec Scr Machines Accessed 16 | . 2 1 6 7 Terminals 6 | . 2 . 4 . Fabricators . | . . . . . Repair Stations . | . . . . . Recycling Units . | . . . . . Scanalyzers . | . . . . . Garrison Access . | . . . . . Total Hacks 96 | . 6 9 35 46 Successful 91 | . 4 9 32 46 Failed 5 | . 2 . 3 . Catastrophic . | . . . . . Database Lockouts . | . . . . . Manual 7 | . 2 . 5 . Terminals 17 | . 6 . 11 . Fabricators . | . . . . . Repair Stations . | . . . . . Recycling Units . | . . . . . Scanalyzers . | . . . . . Garrison Access . | . . . . . Terminal Hacks 91 | . 4 9 32 46 Record 77 | . . 8 24 45 Part Schematic 3 | . . . 3 . Branch Access Points 1 | . . . 1 . Emergency Access Points 1 | . 1 . . . Registered Components 1 | . 1 . . . Zone Layout 6 | . 2 . 4 . Proto ID Catalog 2 | . . 1 . 1 Fabricator Hacks . | . . . . . Repair Station Hacks . | . . . . . Recycling Unit Hacks . | . . . . . Scanalyzer . | . . . . . Garrison Access Hacks . | . . . . . Unauthorized Hacks . | . . . . . Terminals . | . . . . . Fabricators . | . . . . . Repair Stations . | . . . . . Recycling Units . | . . . . . Scanalyzers . | . . . . . Garrison Access . | . . . . . Data Cores Recovered . | . . . . . Used . | . . . . . Hacking Detections 5 | . 1 . 4 . Full Trace Events 2 | . 1 . 1 . Feedback Events 1 | . . . 1 . Corruption 1 | . . . 1 . Feedback Blocked . | . . . . . Robot Schematics Acquired . | . . . . . Robots Built . | . . . . . Authchips . | . . . . . Time . | . . . . . Total Robot Build Rating . | . . . . . Part Schematics Acquired 3 | . . . 3 . Parts Built . | . . . . . Authchips . | . . . . . Time . | . . . . . Total Part Build Rating . | . . . . . Part Studies Acquired . | . . . . . Parts Repaired . | . . . . . Time . | . . . . . Parts Recycled . | . . . . . Recycled Matter . | . . . . . Retrieved Matter . | . . . . . Retrieved Components . | . . . . . Parts Scanalyzed . | . . . . . Part Schematics Acquired . | . . . . . Parts Damaged . | . . . . . Bothacking | -11 -10 -10 -9 -9 ------------ Run | Yrd Mat Sub Rec Scr Used RIF Installer . | . . . . . Robots Hacked 3 | . . . . 3 Non-combat . | . . . . . Combat 3 | . . . . 3 Robot Hacks Applied 3 | . . . . 3 parse_system 3 | . . . . 3 Relay Couplers Released . | . . . . . Fabnet Peak Effective % . | . . . . . Robots Rewired . | . . . . . Allies Hacked . | . . . . . Hacks Repelled . | . . . . . Allies | -11 -10 -10 -9 -9 -------- Run | Yrd Mat Sub Rec Scr Total Allies . | . . . . . Largest Group . | . . . . . Highest-Rated Group . | . . . . . Highest-Rated Ally . | . . . . . Total Orders . | . . . . . Ally Attacks . | . . . . . Total Damage . | . . . . . Kills . | . . . . . Allies Corrupted . | . . . . . Allies Melted 3 | . . . . 3 Intel | -11 -10 -10 -9 -9 ------- Run | Yrd Mat Sub Rec Scr Active Infowar (turns) 4960 | 37 799 1533 1102 1489 Sensors 4600 | 37 799 1533 1102 1129 Terrain 360 | . . . . 360 Robot Analysis Total . | . . . . . Derelict Logs Recovered 3 | . . 1 . 2 Drone Launches . | . . . . . Drone Recoveries . | . . . . . Exploration | -11 -10 -10 -9 -9 ------------- Run | Yrd Mat Sub Rec Scr Turns Passed 6520 | 86 799 1533 1102 3000 Spaces Moved 3675 | 51 438 853 532 1801 Core 7 | 7 . . . . Treads 3668 | 44 438 853 532 1801 Legs . | . . . . . Wheels . | . . . . . Hover . | . . . . . Flight . | . . . . . Fastest Speed 50 | 50 160 160 160 146 Average Speed 164 | 144 160 160 192 160 Slowest Speed 320 | 160 160 240 320 240 Overloaded Moves . | . . . . . Propulsion Burnouts . | . . . . . Robots Hopped . | . . . . . Potential Cave-ins . | . . . . . Cave-ins Triggered . | . . . . . Exploration Rate (%) 60 | 3 72 59 84 86 Regions Visited 4 Branch Regions 3 Pre-discovered Areas . | . . . . . Known Exits Taken 4 | 1 1 1 1 . Unknown Exits Taken . | . . . . . Scrap Searched 16 | . . 14 . 2 Spaces Dug . | . . . . . Terrain Destroyed 113 | . . 23 . 90 Melee . | . . . . . Projectile . | . . . . . AOE 113 | . . 23 . 90 Terrain Rammed . | . . . . . Walls Destroyed . | . . . . . Machines Disabled . | . . . . . Actions | -11 -10 -10 -9 -9 --------- Run | Yrd Mat Sub Rec Scr Total 3976 | 63 499 934 588 1892 Wait 61 | . . 18 7 36 Move 3671 | 50 437 852 531 1801 Hop . | . . . . . Pick Up 43 | 7 8 7 12 9 Fast Attach 2 | . . . . 2 Attach 19 | 6 1 3 4 5 Detach 3 | . . 1 1 1 Swap 7 | . 3 1 2 1 Drop 12 | . 3 . 3 6 Fire 149 | . 46 52 26 25 Melee 5 | . . . . 5 Ram . | . . . . . Kick . | . . . . . Crush 3 | . 1 . 2 . Escape Stasis . | . . . . . Rewire 1 | . . . . 1 Trap . | . . . . . Miscellaneous . | . . . . . Route ------- -11/Scrapyard -10/Materials (discovered 4 exits: *Mat x2 / *Min / *Sub) -10/Subcaves (discovered 2 exits: *Mat / *Rec) -9/Recycling (discovered 2 exits: *Fac / *Scr) -9/Scraptown (discovered 2 exits: *Fac x2) History --------- Turn | Location | Event 6 | -11/Scrapyard | Identified exit to Materials 6 | -11/Scrapyard | Discovered exit to Materials (range 16) 87 | -11/Scrapyard | Entered Materials 87 | -10/Materials | Evolved 1 slot: Propulsion x1 303 | -10/Materials | Build established: Hacker-Mutant 310 | -10/Materials | Identified exit to Materials 310 | -10/Materials | Discovered exit to Materials (range 3) 436 | -10/Materials | Identified exit to Mines 436 | -10/Materials | Discovered exit to Mines (range 13) 512 | -10/Materials | Identified exit to Subcaves 512 | -10/Materials | Discovered exit to Subcaves (range 14) 796 | -10/Materials | Discovered exit to Materials (range 9) 886 | -10/Materials | Entered Subcaves 887 | -10/Subcaves | Approached by a straggling Scientist 1775 | -10/Subcaves | Shifting Twisted Machinery released Sub. Machine Gun 1850 | -10/Subcaves | Visited 4L-MR0's lab 1872 | -10/Subcaves | Found Power Bank 2038 | -10/Subcaves | Disturbed a concealed Subdweller 2125 | -10/Subcaves | Identified exit to Materials 2125 | -10/Subcaves | Discovered exit to Materials (range 7) 2136 | -10/Subcaves | Shifting Twisted Machinery released Spk. Treads 2161 | -10/Subcaves | Shifting Twisted Machinery released Mak. Light Armor Plating 2366 | -10/Subcaves | Identified exit to Recycling 2366 | -10/Subcaves | Discovered exit to Recycling (range 9) 2375 | -10/Subcaves | Lost 3 parts (1p1n1w) 2419 | -10/Subcaves | Entered Recycling 2440 | -9/Recycling | Core integrity fell below 50% 3249 | -9/Recycling | Identified exit to Factory 3249 | -9/Recycling | Discovered exit to Factory (range 8) 3464 | -9/Recycling | Scanned before Scraplab entrance 3488 | -9/Recycling | Entered Scraplab 3518 | -9/Recycling | Identified exit to Scraptown 3518 | -9/Recycling | Discovered exit to Scraptown (range 3) 3521 | -9/Recycling | Entered Scraptown 3860 | -9/Scraptown | Heard Great Nut preacher, LISTEN AND RECITE! 3888 | -9/Scraptown | Scanned Subdweller tech in exchange for log data 3896 | -9/Scraptown | Learned 12 Research zone layouts 3897 | -9/Scraptown | Learned location of 1 exit from Factory 3918 | -9/Scraptown | Identified exit to Factory 3918 | -9/Scraptown | Discovered exit to Factory (range 11) 4084 | -9/Scraptown | Visited Junk Repository 4146 | -9/Scraptown | Visited Cave Peace 4192 | -9/Scraptown | Visited SPCMW 4404 | -9/Scraptown | Visited IN-MT5's Study 4453 | -9/Scraptown | Visited UFD Registry 4453 | -9/Scraptown | Registered with UFD as "Thunderspreader" 4488 | -9/Scraptown | Visited Cyclists 4528 | -9/Scraptown | Visited CPS Storage 4637 | -9/Scraptown | Visited Cartography Club 4725 | -9/Scraptown | Found Surveybot 17 Chip 4775 | -9/Scraptown | Visited Observation Area 4833 | -9/Scraptown | Visited Chapter 10 4949 | -9/Scraptown | Discovered exit to Factory (range 5) 4997 | -9/Scraptown | Visited A0-MCA Data Center 5009 | -9/Scraptown | Given a B- rating by A0-MCA 5012 | -9/Scraptown | Found A0-MCA's Component Scanner 5046 | -9/Scraptown | Visited Scrapoid Research Area 5131 | -9/Scraptown | Visited Junk Repository 5216 | -9/Scraptown | Delivered Scrap Shield to a Scientist 5445 | -9/Scraptown | Visited Science Guys 5527 | -9/Scraptown | Visited LU-1G1's Boring Crew 5610 | -9/Scraptown | Visited Abandonware Association 5643 | -9/Scraptown | Learned abandonware demo "POISON.EXE" 6146 | -9/Scraptown | Visited Derelict Rescue Squad 6232 | -9/Scraptown | Met Optimus 6232 | -9/Scraptown | Accepted into 0bPrime 6345 | -9/Scraptown | Civil war broke out across Scraptown 6441 | -9/Scraptown | Lost 7 allies 6455 | -9/Scraptown | Destroyed 11 combat bots 6463 | -9/Scraptown | Core integrity fell below 20% 6521 | -9/Scraptown | Destroyed by 0Q-WDM(j) with Overtuned Pulse Rifle Last Messages --------------- 06484_ N8-XYF(E) destroyed. 06484_ Rocket Launcher destroyed. 06485_ The unstable cave ceiling collapses. 06487_ Ovr. Treads suddenly begins malfunctioning. 06492_ Imp. Datajack destroyed. 06492_ Penetrated by Bolt. 06493_ U3-V7T(j) destroyed. 06498_ Acquired 11 matter. 06502_ Bolt penetrates Wall. 06503_ Acquired 4 matter. 06504_ Bolt penetrates Wall. 06505_ Acquired 4 matter. 06505_ LQ-SSI(h) destroyed. 06506_ RV-MOV(g) destroyed. 06507_ Acquired 4 matter. 06508_ System corrupted: Matter fused (-6). 06508_ Acquired 6 matter. 06509_ Acquired 4 matter. 06520_ YQ-870(g) destroyed. Map ----- +----------------------------------------------------+ | """ " #### ###?????????# ! ####### ##### | | " " #### ###?????????#!]/ #????# # "## | | " """" ""#?????????#### ! #????# X# | | " "#?????????????# %[ ?????### "# | | "" " " "" "#?????????????# =%! #??????? "# | | " " "" "#?????????????# ! # ????????### | | " " "#?????????????# #??????????? | | " " ""#??????######### !* % #??????????? | | " " " """""#??????# #[%! ???????????? | | " """""""#??????# """ #!=! ?######?????? | | " """""""???????# """" # ### #####?? | | " " ######????????# X""" # # # # ### | | " ########??????# """" # =%! ![= | | " " #"""X""#??????# """ = %= | | " " #" "#??????# # *! | | #" "#??????##########=[![% [= ! | | " #" "#?????????#######%=! *% =![ /% %= | | " #" "#????????## !%!!*!==!=%!=% | | """"" #" "#????????# [jj[==*!%==%!! = | | ##### #"" """###!#######!%=g %=%![!= | | ????# *%! *=%[! =%!j##### % [= # ## # # | | ##### =!= =!!*% !==!#??## ! !! #### % | | """"" #"" " "#" "[" "###g= #??# """""" #?# | | " "" #" "##"" "#?# #??# "" "" #?## | | " "" #"" "##"" "#?# #??# " " #??# | | "" #"" "##"" "#?#@ #??# " " #??#""" | | "" #"" " "##"%= "#?# #??# " " #??#"" | | #"""" "##"!! "#?# #??# " " #??#" | | " #""""""##""""""#?# #??# "" "" #??#" | | "" ################?# #??# """""" #??#"""" | | "" #######??#####???# #??## ##??##### | | "" """""""#?#"""#???# #????########????????? | | " """ " "#?#" "#???; !#????????????????????? | | # ### " """ "#?# #???#=[[#????????????????????? | | ??# " """ "#?# #####!==#????????????????????? | | ##### " """ "??# ==!##???????????????????? | | """"" " """ "#?# %[%%#???????????????????? | | " " """ "#?# !==##???????????????????? | | "" " " """ "#?##### ###!##????????????????????? | | "" " " """ "#?????# #??##?????????????????????? | | """ """ "####### ######????????????????????? | | """ " " """ "##""""" """""#????????????????????? | | """ " " "##"""$" " "#????????????????????? | | " """""""##" "#????????????????????? | | """"" #########""""" """""#????????????????????? | | ##### ##??????###### ######????????????????????? | | ???# ############# #######???????????????????? | | ???# ????????????? | | ???# ????????????? | | ???# ###"""" """"######"""" """"??????????????? | +----------------------------------------------------+ Best States ------------- Heat Dissipation 25 Energy Generation 12 Energy Capacity 265 Matter Stores 300 Matter Capacity 300 Sight Range 16 Robot Scan Range 14 Terrain Scan Range 14 Terrain Scan Density 10 Resistance: KI 35 Resistance: TH 35 Resistance: EX 35 Resistance: EM 35 Resistance: I 35 Resistance: S 35 Resistance: P 35 Evasion (%) 40 Recoil Reduction 3 Offensive Hacking 20 Item Schematics ----------------- Imp. Field Recycling Unit | -9/Recycling | Hacked Hacking Suite | -9/Recycling | Hacked Armor Integrity Analyzer | -9/Recycling | Hacked Robot Schematics ------------------ None Fabricated ------------ Nothing Repaired ---------- Nothing Studied --------- None Alien Tech Used ----------------- None Achievements -------------- Maybe Next Time I'll Detach My Launcher Challenges ------------ None Game ------ Seed RiotTransdimensionalMediator Manual? 0 Play Time 00:37:23 Cumulative 79.9 hours Start 2025.11.12 @ 13:45:23 End 2025.11.12 @ 14:19:57 Sessions 1 Manual Loads 0 Difficulty Explorer Special Mode None Game No. 72 Rogue 0 Adventurer 0 Explorer 72 Win Type - Total 0 Types 0/0/0/0/0/0/0/0/0/0 Lore% 52 Gallery% 54 Achievement% 42 Wizard Run 0 Options --------- Layout 1 ASCII 0 Keyboard 0 Movement Mouse Keybinds 0 Fullscreen 1 Font 24/Smallcaps Map View 50x35 Zoom Use 0% Tactical HUD 1 Map Filters NONE Filters NONE Steam 1 RUN: 2fc78dbb-9cb6-4660-9657-32684e89f031